Workbook

Sheet Sheet1
B2: A | H2: A' | N2: B | T2: C | Z2: D | AF2: brake | AN2: A | AO2: A' | AP2: B | AQ2: C | AR2: D
B3: factory | C3: LEFT | D3: RIGHT | E3: left | F3: right | G3: symet | H3: factory | I3: LEFT | J3: RIGHT | K3: left | L3: right | M3: symet. | N3: factory | O3: LEFT | P3: RIGHT | Q3: left | R3: dir. | S3: symet | T3: factory | U3: LEFT | V3: RIGHT | W3: left. | X3: right | Y3: symet | Z3: factory | AA3: LEFT | AB3: RIGHT | AC3: left. | AD3: right | AE3: symet | AF3: factory | AG3: LEFT | AH3: RIGHT | AI3: left. | AJ3: right | AK3: symet
A4: 1 | B4: =AN4+$M$24 -> 7736 | E4: =C4-B4 -> -7736 | F4: =D4-B4 -> -7736 | G4: =C4-D4 -> 0 | H4: =AO4+$M$24 -> 7707 | K4: =I4-H4 -> -7707 | L4: =J4-H4 -> -7707 | M4: =I4-J4 -> 0 | N4: =AP4+$M$24 -> 7588 | Q4: =O4-N4 -> -7588 | R4: =P4-N4 -> -7588 | S4: =O4-P4 -> 0 | T4: =AQ4+$M$24 -> 7677 | W4: =U4-T4 -> -7677 | X4: =V4-T4 -> -7677 | Y4: =U4-V4 -> 0 | Z4: =AR4+$M$24 -> 7794 | AC4: =AA4-Z4 -> -7794 | AD4: =AB4-Z4 -> -7794 | AE4: =AA4-AB4 -> 0 | AF4: 7907 | AI4: =AF4-AG4 -> 7907 | AJ4: =AF4-AH4 -> 7907 | AK4: =AG4-AH4 -> 0 | AN4: 7736 | AO4: 7707 | AP4: 7588 | AQ4: 7677 | AR4: 7794 | AS4: 30
A5: 2 | B5: 7695 | E5: =C5-B5 -> -7695 | F5: =D5-B5 -> -7695 | G5: =C5-D5 -> 0 | H5: 7664 | K5: =I5-H5 -> -7664 | L5: =J5-H5 -> -7664 | M5: =I5-J5 -> 0 | N5: 7558 | Q5: =O5-N5 -> -7558 | R5: =P5-N5 -> -7558 | S5: =O5-P5 -> 0 | T5: 7637 | W5: =U5-T5 -> -7637 | X5: =V5-T5 -> -7637 | Y5: =U5-V5 -> 0 | Z5: 7756 | AC5: =AA5-Z5 -> -7756 | AD5: =AB5-Z5 -> -7756 | AE5: =AA5-AB5 -> 0 | AF5: 7656 | AI5: =AF5-AG5 -> 7656 | AJ5: =AF5-AH5 -> 7656 | AK5: =AG5-AH5 -> 0 | AN5: 7695 | AO5: 7664 | AP5: 7558 | AQ5: 7637 | AR5: 7756
A6: 3 | B6: 7661 | E6: -7661 | F6: -7661 | G6: 0 | H6: 7628 | K6: -7628 | L6: -7628 | M6: 0 | N6: 7518 | Q6: -7518 | R6: -7518 | S6: 0 | T6: 7592 | W6: -7592 | X6: -7592 | Y6: 0 | Z6: 7705 | AC6: -7705 | AD6: -7705 | AE6: 0 | AF6: 7483 | AI6: 7483 | AJ6: 7483 | AK6: 0 | AN6: 7661 | AO6: 7628 | AP6: 7518 | AQ6: 7592 | AR6: 7705
A7: 4 | B7: 7681 | E7: -7681 | F7: -7681 | G7: 0 | H7: 7649 | K7: -7649 | L7: -7649 | M7: 0 | N7: 7542 | Q7: -7542 | R7: -7542 | S7: 0 | T7: 7614 | W7: -7614 | X7: -7614 | Y7: 0 | Z7: 7719 | AC7: -7719 | AD7: -7719 | AE7: 0 | AF7: 7520 | AI7: 7520 | AJ7: 7520 | AK7: 0 | AN7: 7681 | AO7: 7649 | AP7: 7542 | AQ7: 7614 | AR7: 7719
A8: 5 | B8: 7600 | E8: -7600 | F8: -7600 | G8: 0 | H8: 7569 | K8: -7569 | L8: -7569 | M8: 0 | N8: 7470 | Q8: -7470 | R8: -7470 | S8: 0 | T8: 7546 | W8: -7546 | X8: -7546 | Y8: 0 | Z8: 7655 | AC8: -7655 | AD8: -7655 | AE8: 0 | AF8: 7286 | AI8: 7286 | AJ8: 7286 | AK8: 0 | AN8: 7600 | AO8: 7569 | AP8: 7470 | AQ8: 7546 | AR8: 7655
A9: 6 | B9: 7552 | E9: -7552 | F9: -7552 | G9: 0 | H9: 7518 | K9: -7518 | L9: -7518 | M9: 0 | N9: 7422 | Q9: -7422 | R9: -7422 | S9: 0 | T9: 7488 | W9: -7488 | X9: -7488 | Y9: 0 | Z9: 7595 | AC9: -7595 | AD9: -7595 | AE9: 0 | AF9: 7161 | AI9: 7161 | AJ9: 7161 | AK9: 0 | AN9: 7552 | AO9: 7518 | AP9: 7422 | AQ9: 7488 | AR9: 7595
A10: 7 | B10: 7468 | E10: -7468 | F10: -7468 | G10: 0 | H10: 7435 | K10: -7435 | L10: -7435 | M10: 0 | N10: 7349 | Q10: -7349 | R10: -7349 | S10: 0 | T10: 7406 | W10: -7406 | X10: -7406 | Y10: 0 | Z10: 7509 | AC10: -7509 | AD10: -7509 | AE10: 0 | AF10: 7065 | AI10: 7065 | AJ10: 7065 | AK10: 0 | AN10: 7468 | AO10: 7435 | AP10: 7349 | AQ10: 7406 | AR10: 7509
A11: 8 | B11: 7470 | E11: -7470 | F11: -7470 | G11: 0 | H11: 7446 | K11: -7446 | L11: -7446 | M11: 0 | N11: 7356 | Q11: -7356 | R11: -7356 | S11: 0 | T11: 7410 | W11: -7410 | X11: -7410 | Y11: 0 | Z11: 7485 | AC11: -7485 | AD11: -7485 | AE11: 0 | AF11: 7100 | AI11: 7100 | AJ11: 7100 | AK11: 0 | AN11: 7470 | AO11: 7446 | AP11: 7356 | AQ11: 7410 | AR11: 7485
A12: 9 | B12: =AN12+$M$24 -> 7348 | E12: -7348 | F12: -7348 | G12: 0 | H12: =AO12+$M$24 -> 7327 | K12: -7327 | L12: -7327 | M12: 0 | N12: =AP12+$M$24 -> 7247 | Q12: -7247 | R12: -7247 | S12: 0 | T12: =AQ12+$M$24 -> 7354 | W12: -7354 | X12: -7354 | Y12: 0 | AF12: 6962 | AI12: 6962 | AJ12: 6962 | AK12: 0 | AN12: 7348 | AO12: 7327 | AP12: 7247 | AQ12: 7354
A13: 10 | B13: 7169 | E13: -7169 | F13: -7169 | G13: 0 | H13: 7158 | K13: -7158 | L13: -7158 | N13: 7077 | Q13: -7077 | R13: -7077 | S13: 0 | T13: 7192 | W13: -7192 | X13: -7192 | Y13: 0 | AF13: 6893 | AI13: 6893 | AJ13: 6893 | AK13: 0 | AN13: 7169 | AO13: 7158 | AP13: 7077 | AQ13: 7192
A14: 11 | B14: 7057 | E14: -7057 | F14: -7057 | G14: 0 | H14: 7054 | K14: -7054 | L14: -7054 | N14: 7004 | Q14: -7004 | R14: -7004 | S14: 0 | T14: 7084 | W14: -7084 | X14: -7084 | Y14: 0 | AF14: 6875 | AI14: 6875 | AJ14: 6875 | AK14: 0 | AN14: 7057 | AO14: 7054 | AP14: 7004 | AQ14: 7084
A15: 12 | B15: 6818 | E15: -6818 | F15: -6818 | G15: 0 | N15: 6863 | Q15: -6863 | R15: -6863 | S15: 0 | T15: 7005 | W15: -7005 | X15: -7005 | Y15: 0 | AF15: 6959 | AI15: 6959 | AJ15: 6959 | AK15: 0 | AN15: 6818 | AP15: 6863 | AQ15: 7005
A16: 13 | B16: 6784 | E16: -6784 | F16: -6784 | G16: 0 | N16: 6874 | Q16: -6874 | R16: -6874 | S16: 0 | T16: 6993 | W16: -6993 | X16: -6993 | Y16: 0 | AF16: 7466 | AI16: 7466 | AJ16: 7466 | AK16: 0 | AN16: 6784 | AP16: 6874 | AQ16: 6993
D23: RIGHT | H23: LEFT | M23: Offset
C24: A | D24: X | E24: X | F24: X | G24: X | H24: X | I24: X | J24: AS+ | K24: 30 | M24: 0
C25: B | D25: X | E25: X | F25: X | G25: X | H25: X | I25: X | J25: AS | K25: 22
C26: C | D26: X | E26: X | F26: X | G26: X | H26: X | I26: X | J26: DL | K26: 15
